fUST/lending_fUST_20250701
["ID","MTS","AMOUNT","RATE_DAILY","PERIOD"]
[368854514,1751377842026,-460.0,0.00017541,2]
[368854516,1751377842035,-460.0,0.00017541,2]
[368854517,1751377842045,-460.0,0.00017542,2]
[368854519,1751377842055,-460.0,0.00017542,2]
[368854522,1751377842064,-460.0,0.00017542,2]
[368854524,1751377842076,-434.43940875,0.00017542,2]
[368854526,1751377842086,-460.0,0.00017542,2]
[368854528,1751377842095,-463.71505241,0.00017542,2]
[368854529,1751377842105,-460.0,0.00017542,2]
[368854531,1751377842115,-460.0,0.00017542,2]
[368854533,1751377842124,-460.0,0.00017542,2]
[368854535,1751377842133,-460.0,0.00017542,2]
[368854537,1751377842143,-460.0,0.00017542,2]
[368854539,1751377842153,-232.76409601,0.00017542,2]
[368854542,1751377842163,-500.0,0.00017542,2]
[368854544,1751377842173,-460.0,0.00017542,2]
[368854546,1751377842182,-460.0,0.00017542,2]
[368854548,1751377842192,-460.0,0.00017542,2]
[368854550,1751377842205,-504.37,0.00017542,2]
[368854552,1751377842215,-460.0,0.00017542,2]
[368854554,1751377842224,-460.0,0.00017542,2]
[368854556,1751377842235,-460.0,0.00017542,2]
[368854558,1751377842246,-500.0,0.00017542,2]
[368854560,1751377842255,-460.0,0.00017542,2]
[368854562,1751377842267,-460.0,0.00017542,2]
[368854564,1751377842276,-460.0,0.00017542,2]
[368854566,1751377842286,-460.0,0.00017543,2]
[368854568,1751377842296,-301.0,0.00017543,2]
[368854572,1751377842306,-160.86863118,0.00017573,2]
[368854574,1751377842316,-500.0,0.00017573,2]
[368854576,1751377842327,-500.0,0.00017573,2]
[368854578,1751377842337,-300.48811952,0.00017573,2]
[368854580,1751377842346,-577.08573698,0.00017573,2]
[368854582,1751377842356,-500.0,0.00017573,2]
[368854584,1751377842365,-460.0,0.00017637,2]
[368854586,1751377842374,-460.0,0.00017637,2]
[368854588,1751377842383,-460.0,0.00017638,2]
[368854590,1751377842393,-460.0,0.00017638,2]
[368854592,1751377842402,-460.0,0.00017638,2]
[368854594,1751377842411,-460.0,0.00017638,2]
[368854596,1751377842420,-460.0,0.00017638,2]
[368854598,1751377842429,-460.0,0.00017638,2]
[368854600,1751377842439,-460.0,0.00017638,2]
[368854602,1751377842449,-460.0,0.00017638,2]
[368854604,1751377842459,-460.0,0.00017638,2]
[368854606,1751377842468,-460.0,0.00017638,2]
[368854608,1751377842477,-460.0,0.00017638,2]
[368854610,1751377842487,-481.78,0.00017638,2]
[368854612,1751377842496,-179.82199852,0.00017638,2]
[368854614,1751377842506,-460.0,0.00017638,2]
[368854616,1751377842516,-1068.93,0.00017638,2]
[368854618,1751377842526,-460.0,0.00017638,2]
[368854620,1751377842535,-500.0,0.00017639,2]
[368854622,1751377842544,-370.19478703,0.0001764,2]
[368854624,1751377842554,-460.0,0.0001764,2]
[368854627,1751377842564,-460.0,0.00017643,2]
[368854629,1751377842575,-460.0,0.00017643,2]
[368854630,1751377842585,-460.0,0.00017643,2]
[368854633,1751377842595,-460.0,0.00017643,2]
[368854635,1751377842605,-460.0,0.00017643,2]
[368854637,1751377842614,-460.0,0.00017643,2]
[368854640,1751377842623,-460.0,0.00017643,2]
[368854641,1751377842632,-460.0,0.00017643,2]
[368854644,1751377842642,-460.0,0.00017643,2]
[368854647,1751377842651,-460.0,0.00017643,2]
[368854649,1751377842660,-460.0,0.00017811,2]
[368854651,1751377842670,-522.68101293,0.00017811,2]
[368854652,1751377842680,-460.0,0.00017811,2]
[368854654,1751377842690,-641.94,0.00017811,2]
[368854657,1751377842700,-460.0,0.00017811,2]
[368854659,1751377842710,-908.06,0.00017811,2]
[368854661,1751377842720,-460.0,0.00017812,2]
[368854663,1751377842729,-460.0,0.00017812,2]
[368854665,1751377842739,-460.0,0.00017812,2]
[368854667,1751377842748,-460.0,0.00017812,2]
[368854669,1751377842759,-460.0,0.00017812,2]
[368854671,1751377842770,-808.9,0.00017812,2]
[368854673,1751377842779,-307.86,0.00017812,2]
[368854675,1751377842789,-574.63,0.00017812,2]
[368854677,1751377842799,-1922.78,0.00017812,2]
[368854679,1751377842808,-460.0,0.00017812,2]
[368854681,1751377842818,-460.0,0.00017812,2]
[368854683,1751377842829,-460.0,0.00017812,2]
[368854685,1751377842839,-252.88804243,0.00017812,2]
[368854686,1751377842848,-460.0,0.00017812,2]
[368854689,1751377842857,-460.0,0.00017812,2]
[368854690,1751377842867,-460.0,0.00017812,2]
[368854692,1751377842876,-542.18138814,0.00017812,2]
[368854694,1751377842886,-460.0,0.00017812,2]
[368854697,1751377842896,-460.0,0.00017812,2]
[368854699,1751377842905,-460.0,0.00017812,2]
[368854701,1751377842915,-460.0,0.00017812,2]
[368854702,1751377842924,-460.0,0.00017812,2]
[368854704,1751377842933,-587.05,0.00017812,2]
[368854706,1751377842942,-522.73,0.00017812,2]
[368854708,1751377842952,-460.0,0.00017812,2]
[368854711,1751377842961,-460.0,0.00017812,2]
[368854713,1751377842970,-460.0,0.00017812,2]
[368854715,1751377842980,-232.33,0.00017813,2]
[368854717,1751377842989,-460.0,0.00017813,2]
[368854718,1751377842999,-469.87,0.00017813,2]
[368854719,1751377843008,-460.0,0.00017813,2]
[368854720,1751377843018,-460.0,0.00017813,2]
[368854721,1751377843028,-460.0,0.00017813,2]
[368854722,1751377843037,-631.02508211,0.00017813,2]
[368854723,1751377843046,-460.0,0.00017813,2]
[368854724,1751377843055,-460.0,0.00017813,2]
[368854725,1751377843065,-460.0,0.00017813,2]
[368854726,1751377843075,-460.0,0.00017813,2]
[368854727,1751377843084,-460.0,0.00017813,2]
[368854728,1751377843094,-531.45,0.00017813,2]
[368854729,1751377843103,-345.72567557,0.00017813,2]
[368854730,1751377843113,-460.0,0.00017813,2]
[368854731,1751377843122,-460.0,0.00017813,2]
[368854732,1751377843132,-496.87,0.00017813,2]
[368854733,1751377843141,-460.0,0.00017813,2]
[368854734,1751377843151,-460.0,0.00017813,2]
[368854735,1751377843160,-460.0,0.00017813,2]
[368854736,1751377843169,-460.0,0.00017813,2]
[368854737,1751377843179,-460.0,0.00017813,2]
[368854738,1751377843189,-460.0,0.00017813,2]
[368854740,1751377843202,-460.0,0.00017813,2]
[368854741,1751377843213,-460.0,0.00017813,2]
[368854742,1751377843223,-460.0,0.00017813,2]
[368854743,1751377843232,-460.0,0.00017813,2]
[368854744,1751377843242,-460.0,0.00017813,2]
[368854746,1751377843252,-460.0,0.00017815,2]
[368854748,1751377843261,-460.0,0.00017815,2]
[368854751,1751377843271,-460.0,0.00017815,2]
[368854754,1751377843281,-460.0,0.00017815,2]
[368854756,1751377843292,-460.0,0.00017815,2]
[368854758,1751377843301,-460.0,0.00017815,2]
[368854760,1751377843311,-460.0,0.00017815,2]
[368854762,1751377843320,-846.08,0.00017815,2]
[368854764,1751377843330,-460.0,0.00017815,2]
[368854766,1751377843339,-460.0,0.00017815,2]
[368854768,1751377843349,-460.0,0.00017815,2]
[368854770,1751377843358,-460.0,0.00017815,2]
[368854775,1751377843399,-460.0,0.00017815,2]
[368854777,1751377843410,-460.0,0.00017815,2]
[368854779,1751377843419,-460.0,0.00017816,2]
[368854781,1751377843429,-460.0,0.00017816,2]
[368854783,1751377843440,-460.0,0.00017816,2]
[368854785,1751377843449,-460.0,0.00017816,2]
[368854787,1751377843458,-460.0,0.00017816,2]
[368854789,1751377843468,-460.0,0.00017816,2]
[368854791,1751377843476,-460.0,0.00017816,2]
[368854793,1751377843486,-508.26302076,0.00017816,2]
[368854795,1751377843496,-460.0,0.00017816,2]
[368854797,1751377843505,-460.0,0.00017816,2]
[368854799,1751377843514,-500.0,0.00017816,2]
[368854801,1751377843523,-460.0,0.00017816,2]
[368854803,1751377843533,-460.0,0.00017817,2]
[368854806,1751377843542,-460.0,0.00017911,2]
[368854808,1751377843551,-460.0,0.00017911,2]
[368854810,1751377843561,-460.0,0.00017912,2]
[368854812,1751377843571,-460.0,0.00017912,2]
[368854813,1751377843580,-460.0,0.00017912,2]
[368854816,1751377843591,-460.0,0.00017912,2]
[368854818,1751377843601,-460.0,0.00017912,2]
[368854820,1751377843610,-460.0,0.00017912,2]
[368854822,1751377843620,-595.57355479,0.00017912,2]
[368854834,1751377843721,-473.35644521,0.00017912,2]
[368854836,1751377843731,-178.34,0.00017914,2]
[368854838,1751377843740,-500.0,0.0001792,2]
[368854840,1751377843751,-678.74490243,0.00017921,2]
[368854842,1751377843762,-321.25509757,0.00017921,2]
[368854844,1751377843772,-269.15451294,0.00018085,2]
[368854847,1751377843783,-190.84548706,0.00018085,2]
[368854849,1751377843793,-641.94,0.00018085,2]
[368854851,1751377843803,-460.0,0.00018085,2]
[368854853,1751377843812,-908.06,0.00018085,2]
[368854855,1751377843822,-460.0,0.00018086,2]
[368854857,1751377843832,-460.0,0.00018086,2]
[368854859,1751377843841,-460.0,0.00018086,2]
[368854861,1751377843850,-808.9,0.00018086,2]
[368854863,1751377843860,-574.63,0.00018086,2]
[368854865,1751377843870,-1922.78,0.00018086,2]
[368854867,1751377843879,-460.0,0.00018086,2]
[368854869,1751377843888,-460.0,0.00018086,2]
[368854871,1751377843898,-460.0,0.00018086,2]
[368854873,1751377843908,-460.0,0.00018086,2]
[368854875,1751377843917,-460.0,0.00018086,2]
[368854877,1751377843926,-155.31,0.00018086,2]
[368854879,1751377843936,-460.0,0.00018086,2]
[368854881,1751377843946,-460.0,0.00018086,2]
[368854883,1751377843956,-460.0,0.00018086,2]
[368854885,1751377843966,-460.0,0.00018086,2]
[368854887,1751377843975,-460.0,0.00018086,2]
[368854889,1751377843984,-460.0,0.00018087,2]
[368854891,1751377843994,-521.91,0.00018087,2]
[368854893,1751377844004,-367.02245973,0.00018087,2]
[368854895,1751377844014,-460.0,0.00018087,2]
[368854897,1751377844023,-296.94813084,0.00018087,2]
[368854900,1751377844039,-533.64,0.00018086,2]
[368854902,1751377844049,-163.05186916,0.00018087,2]
[368854904,1751377844058,-466.59,0.00018087,2]
[368854906,1751377844067,-538.76,0.00018087,2]
[368854908,1751377844077,-413.51343539,0.00018087,2]
[368854910,1751377844087,-460.0,0.00018087,2]
[368854912,1751377844097,-460.0,0.00018087,2]
[368854914,1751377844106,-548.48,0.00018087,2]
[368854916,1751377844115,-460.0,0.00018087,2]
[368854918,1751377844124,-460.0,0.00018087,2]
[368854920,1751377844134,-460.0,0.00018087,2]
[368854922,1751377844143,-272.87,0.00018087,2]
[368854924,1751377844152,-460.0,0.00018087,2]
[368854926,1751377844161,-460.0,0.00018089,2]
[368854928,1751377844171,-460.0,0.00018089,2]
[368854930,1751377844180,-460.0,0.00018089,2]
[368854932,1751377844189,-460.0,0.00018089,2]
[368854934,1751377844202,-460.0,0.00018089,2]
[368854936,1751377844211,-460.0,0.00018089,2]
[368854938,1751377844220,-460.0,0.00018089,2]
[368854940,1751377844229,-846.08,0.00018089,2]
[368854942,1751377844240,-460.0,0.00018089,2]
[368854944,1751377844250,-448.56385456,0.00018089,2]
[368854947,1751377844265,-11.43614544,0.00018089,2]
[368854949,1751377844277,-460.0,0.00018089,2]
[368854951,1751377844287,-460.0,0.00018089,2]
[368854953,1751377844296,-460.0,0.00018089,2]
[368854955,1751377844305,-460.0,0.0001809,2]
[368854957,1751377844315,-460.0,0.0001809,2]
[368854959,1751377844325,-460.0,0.0001809,2]
[368854961,1751377844335,-171.30213755,0.0001809,2]
[368854963,1751377844344,-460.0,0.0001809,2]
[368854966,1751377844355,-460.0,0.0001809,2]
[368854968,1751377844364,-460.0,0.0001809,2]
[368854970,1751377844373,-460.0,0.0001809,2]
[368854972,1751377844384,-460.0,0.0001809,2]
[368854974,1751377844393,-460.0,0.0001809,2]
[368854976,1751377844403,-460.0,0.00018091,2]
[368854978,1751377844412,-1000.0,0.00018121,2]
[368854980,1751377844421,-1002.16347564,0.00018121,2]
[368854982,1751377844430,-460.0,0.00018185,2]
[368854983,1751377844440,-460.0,0.00018185,2]
[368854986,1751377844450,-500.0,0.00018185,2]
[368854988,1751377844460,-460.0,0.00018186,2]
[368854990,1751377844469,-460.0,0.00018186,2]
[368854992,1751377844478,-460.0,0.00018186,2]
[368854994,1751377844488,-460.0,0.00018186,2]
[368854996,1751377844497,-460.0,0.00018186,2]
[368854998,1751377844507,-1068.93,0.00018186,2]
[368855000,1751377844517,-460.0,0.00018359,2]
[368855002,1751377844527,-641.94,0.00018359,2]
[368855004,1751377844536,-460.0,0.00018359,2]
[368855006,1751377844546,-908.06,0.00018359,2]
[368855008,1751377844556,-460.0,0.0001836,2]
[368855010,1751377844566,-553.65,0.0001836,2]
[368855012,1751377844576,-808.9,0.0001836,2]
[368855014,1751377844586,-574.63,0.0001836,2]
[368855016,1751377844595,-1922.78,0.0001836,2]
[368855018,1751377844605,-191.11,0.0001836,2]
[368855020,1751377844613,-460.0,0.0001836,2]
[368855022,1751377844622,-372.08,0.0001836,2]
[368855024,1751377844632,-460.0,0.0001836,2]
[368855026,1751377844641,-460.0,0.0001836,2]
[368855028,1751377844651,-460.0,0.0001836,2]
[368855030,1751377844660,-460.0,0.0001836,2]
[368855032,1751377844670,-460.0,0.0001836,2]
[368855034,1751377844679,-460.0,0.0001836,2]
[368855036,1751377844689,-460.0,0.0001836,2]
[368855038,1751377844698,-460.0,0.00018361,2]
[368855040,1751377844707,-171.26,0.00018361,2]
[368855042,1751377844716,-460.0,0.00018361,2]
[368855044,1751377844726,-460.0,0.00018361,2]
[368855046,1751377844735,-460.0,0.00018361,2]
[368855048,1751377844745,-460.0,0.00018361,2]
[368855050,1751377844755,-460.0,0.00018361,2]
[368855052,1751377844765,-460.0,0.00018361,2]
[368855054,1751377844775,-460.0,0.00018363,2]
[368855056,1751377844785,-460.0,0.00018363,2]
[368855058,1751377844796,-394.97,0.00018363,2]
[368855060,1751377844806,-547.25,0.00018363,2]
[368855063,1751377844815,-544.63878253,0.00018363,2]
[368855065,1751377844827,-460.0,0.00018363,2]
[368855067,1751377844837,-846.08,0.00018363,2]
[368855068,1751377844846,-460.0,0.00018363,2]
[368855071,1751377844856,-460.0,0.00018363,2]
[368855073,1751377844867,-460.0,0.00018363,2]
[368855075,1751377844877,-460.0,0.00018363,2]
[368855077,1751377844886,-460.0,0.00018363,2]
[368855079,1751377844896,-460.0,0.00018364,2]
[368855081,1751377844905,-460.0,0.00018364,2]
[368855083,1751377844915,-556.79,0.00018364,2]
[368855085,1751377844924,-231.2,0.00018364,2]
[368855087,1751377844934,-460.0,0.00018364,2]
[368855089,1751377844943,-460.0,0.00018364,2]
[368855091,1751377844952,-547.34,0.00018364,2]
[368855092,1751377844962,-460.0,0.00018364,2]
[368855094,1751377844971,-460.0,0.00018364,2]
[368855097,1751377844981,-460.0,0.00018365,2]
[368855099,1751377844991,-264.44,0.0001843,2]
[368855100,1751377845000,-460.0,0.00018459,2]
[368855103,1751377845010,-460.0,0.00018459,2]
[368855105,1751377845020,-460.0,0.0001846,2]
[368855106,1751377845030,-460.0,0.0001846,2]
[368855109,1751377845040,-460.0,0.0001846,2]
[368855111,1751377845051,-460.0,0.0001846,2]
[368855113,1751377845060,-460.0,0.0001846,2]
[368855115,1751377845069,-1068.93,0.0001846,2]
[368855117,1751377845079,-1500.0,0.00018468,2]
[368855119,1751377845089,-460.0,0.00018633,2]
[368855121,1751377845098,-641.94,0.00018633,2]
[368855123,1751377845108,-309.65190745,0.00018633,2]
[368855125,1751377845117,-908.06,0.00018633,2]
[368855127,1751377845128,-460.0,0.00018634,2]
[368855129,1751377845137,-808.9,0.00018634,2]
[368855131,1751377845147,-574.63,0.00018634,2]
[368855133,1751377845156,-1922.78,0.00018634,2]
[368855135,1751377845166,-460.0,0.00018634,2]
[368855137,1751377845175,-460.0,0.00018634,2]
[368855139,1751377845184,-503.45,0.00018634,2]
[368855141,1751377845195,-460.0,0.00018634,2]
[368855143,1751377845207,-460.0,0.00018634,2]
[368855145,1751377845217,-460.0,0.00018634,2]
[368855147,1751377845226,-460.0,0.00018634,2]
[368855149,1751377845236,-460.0,0.00018634,2]
[368855150,1751377845248,-460.0,0.00018635,2]
[368855151,1751377845258,-460.0,0.00018635,2]
[368855152,1751377845271,-460.0,0.00018635,2]
[368855153,1751377845281,-460.0,0.00018635,2]
[368855154,1751377845291,-460.0,0.00018635,2]
[368855156,1751377845301,-222.55,0.00018635,2]
[368855158,1751377845310,-460.0,0.00018635,2]
[368855160,1751377845320,-325.28,0.00018637,2]
[368855162,1751377845329,-460.0,0.00018637,2]
[368855164,1751377845340,-846.08,0.00018637,2]
[368855165,1751377845349,-460.0,0.00018637,2]
[368855166,1751377845359,-460.0,0.00018637,2]
[368855168,1751377845369,-460.0,0.00018637,2]
[368855170,1751377845379,-460.0,0.00018637,2]
[368855171,1751377845388,-460.0,0.00018637,2]
[368855172,1751377845398,-460.0,0.00018638,2]
[368855173,1751377845408,-460.0,0.00018638,2]
[368855174,1751377845417,-460.0,0.00018638,2]
[368855175,1751377845426,-460.0,0.00018638,2]
[368855176,1751377845435,-460.0,0.00018638,2]
[368855178,1751377845445,-295.06008309,0.00018638,2]
[368855180,1751377845455,-460.0,0.00018639,2]
[368855183,1751377845465,-1500.0,0.00018668,2]
[368855185,1751377845475,-460.0,0.00018733,2]
[368855187,1751377845484,-460.0,0.00018734,2]
[368855189,1751377845494,-460.0,0.00018734,2]
[368855191,1751377845503,-460.0,0.00018734,2]
[368855193,1751377845512,-460.0,0.00018734,2]
[368855195,1751377845522,-460.0,0.00018734,2]
[368855196,1751377845531,-1068.93,0.00018734,2]
[368855197,1751377845540,-207.4,0.0001882,2]
[368855198,1751377845550,-500.0,0.0001882,2]
[368855200,1751377845559,-500.0,0.0001882,2]
[368855202,1751377845570,-500.0,0.0001882,2]
[368855204,1751377845581,-500.0,0.0001882,2]
[368855206,1751377845590,-500.0,0.0001882,2]
[368855208,1751377845601,-1971.95919631,0.0001882,2]
[368855210,1751377845611,-690.642,0.0001882,2]
[368855212,1751377845620,-500.0,0.0001882,2]
[368855214,1751377845630,-500.0,0.0001882,2]
[368855216,1751377845640,-500.0,0.0001882,2]
[368855219,1751377845651,-500.0,0.0001882,2]
[368855221,1751377845661,-500.0,0.0001882,2]
[368855222,1751377845672,-500.0,0.0001882,2]
[368855225,1751377845683,-500.0,0.0001882,2]
[368855226,1751377845692,-500.0,0.0001882,2]
[368855229,1751377845702,-500.0,0.0001882,2]
[368855231,1751377845712,-500.0,0.0001882,2]
[368855233,1751377845723,-500.0,0.0001882,2]
[368855235,1751377845732,-500.0,0.0001882,2]
[368855237,1751377845742,-500.0,0.0001882,2]
[368855239,1751377845751,-500.0,0.0001882,2]
[368855241,1751377845761,-500.0,0.0001882,2]
[368855242,1751377845771,-500.0,0.0001882,2]
[368855245,1751377845780,-500.0,0.0001882,2]
[368855247,1751377845790,-500.0,0.0001882,2]
[368855249,1751377845799,-500.0,0.0001882,2]
[368855251,1751377845809,-500.0,0.0001882,2]
[368855253,1751377845818,-500.0,0.0001882,2]
[368855255,1751377845829,-500.0,0.0001882,2]
[368855257,1751377845839,-500.0,0.0001882,2]
[368855258,1751377845849,-500.0,0.0001882,2]
[368855260,1751377845859,-500.0,0.0001882,2]
[368855263,1751377845868,-25000.0,0.0001882,2]
[368855265,1751377845879,-10916.57831657,0.0001882,2]
[368855267,1751377845889,-459.52007954,0.00018875,2]
[368855269,1751377845899,-454.7784219,0.000189,2]
[368855271,1751377845908,-460.0,0.00018907,2]
[368855273,1751377845917,-641.94,0.00018907,2]
[368855275,1751377845927,-908.06,0.00018907,2]
[368855277,1751377845936,-460.0,0.00018908,2]
[368855279,1751377845946,-808.9,0.00018908,2]
[368855281,1751377845955,-574.63,0.00018908,2]
[368855283,1751377845964,-1922.78,0.00018908,2]
[368855285,1751377845974,-460.0,0.00018908,2]
[368855287,1751377845984,-460.0,0.00018908,2]
[368855289,1751377845994,-460.0,0.00018908,2]
[368855291,1751377846004,-460.0,0.00018908,2]
[368855293,1751377846014,-460.0,0.00018908,2]
[368855295,1751377846024,-460.0,0.00018908,2]
[368855297,1751377846034,-463.47,0.00018908,2]
[368855299,1751377846044,-460.0,0.00018909,2]
[368855301,1751377846053,-460.0,0.00018909,2]
[368855303,1751377846063,-460.0,0.00018909,2]
[368855305,1751377846073,-460.0,0.00018909,2]
[368855307,1751377846083,-460.0,0.00018909,2]
[368855309,1751377846093,-401.18,0.00018909,2]
[368855311,1751377846103,-460.0,0.00018911,2]
[368855313,1751377846113,-846.08,0.00018911,2]
[368855315,1751377846122,-252.01,0.00018911,2]
[368855318,1751377846132,-460.0,0.00018911,2]
[368855320,1751377846142,-460.0,0.00018911,2]
[368855322,1751377846151,-460.0,0.00018911,2]
[368855324,1751377846161,-460.0,0.00018911,2]
[368855326,1751377846171,-460.0,0.00018912,2]
[368855328,1751377846181,-553.49679332,0.00018912,2]
[368855330,1751377846191,-460.0,0.00018912,2]
[368855332,1751377846205,-460.0,0.00018912,2]
[368855334,1751377846214,-466.64,0.00018912,2]
[368855336,1751377846224,-460.0,0.00018913,2]
[368855338,1751377846234,-426.57137781,0.00019007,2]
[368855340,1751377846246,-460.0,0.00019008,2]
[368855342,1751377846255,-460.0,0.00019008,2]
[368855344,1751377846265,-407.73,0.00019008,2]
[368855346,1751377846277,-460.0,0.00019008,2]
[368855349,1751377846288,-460.0,0.00019008,2]
[368855351,1751377846298,-1068.93,0.00019008,2]
[368855353,1751377846307,-2000.0,0.00019016,2]
[368855354,1751377846318,-500.0,0.00019065,2]
[368855356,1751377846329,-315.509053,0.00019178,2]
[368855358,1751377846339,-460.0,0.00019181,2]
[368855360,1751377846348,-641.94,0.00019181,2]
[368855363,1751377846358,-908.06,0.00019181,2]
[368855365,1751377846368,-460.0,0.00019182,2]
[368855366,1751377846377,-808.9,0.00019182,2]
[368855368,1751377846386,-574.63,0.00019182,2]
[368855370,1751377846396,-1922.78,0.00019182,2]
[368855372,1751377846406,-460.0,0.00019182,2]
[368855373,1751377846415,-460.0,0.00019182,2]
[368855375,1751377846425,-460.0,0.00019182,2]
[368855377,1751377846434,-460.0,0.00019182,2]
[368855379,1751377846444,-460.0,0.00019182,2]
[368855381,1751377846453,-460.0,0.00019182,2]
[368855383,1751377846463,-460.0,0.00019183,2]
[368855384,1751377846472,-460.0,0.00019183,2]
[368855386,1751377846481,-460.0,0.00019183,2]
[368855388,1751377846491,-460.0,0.00019183,2]
[368855390,1751377846500,-460.0,0.00019183,2]
[368855391,1751377846510,-460.0,0.00019185,2]
[368855393,1751377846520,-846.08,0.00019185,2]
[368855395,1751377846530,-460.0,0.00019185,2]
[368855397,1751377846539,-460.0,0.00019185,2]
[368855398,1751377846549,-460.0,0.00019185,2]
[368855400,1751377846559,-460.0,0.00019185,2]
[368855402,1751377846568,-460.0,0.00019186,2]
[368855404,1751377846580,-460.0,0.00019186,2]
[368855406,1751377846589,-460.0,0.00019186,2]
[368855408,1751377846600,-460.0,0.00019187,2]
[368855410,1751377846610,-500.0,0.00019216,2]
[368855411,1751377846619,-847.53272281,0.00019262,2]
[368855413,1751377846629,-215.01728679,0.00019262,2]
[368855415,1751377846639,-230.32585361,0.00019262,2]
[368855417,1751377846648,-12571.40790328,0.00019262,2]
[368855419,1751377846658,-160.0,0.00019262,2]
[368855420,1751377846668,-160.0,0.00019262,2]
[368855422,1751377846677,-837.20943635,0.00019262,2]
[368855424,1751377846688,-213.87551669,0.00019262,2]
[368855426,1751377846697,-160.0,0.00019262,2]
[368855427,1751377846707,-160.0,0.00019262,2]
[368855429,1751377846717,-160.0,0.00019262,2]
[368855431,1751377846727,-460.0,0.00019282,2]
[368855433,1751377846737,-460.0,0.00019282,2]
[368855435,1751377846747,-460.0,0.00019282,2]
[368855437,1751377846757,-460.0,0.00019282,2]
[368855438,1751377846766,-1068.93,0.00019282,2]
[368855440,1751377846776,-33658.57199049,0.00019329,2]
[368855442,1751377846786,-500.0,0.00019352,2]
[368855444,1751377846796,-290.19425268,0.00019352,2]
[368855446,1751377846807,-500.0,0.00019352,2]
[368855448,1751377846817,-441.54162117,0.00019352,2]
[368855449,1751377846828,-500.0,0.00019352,2]
[368855451,1751377846837,-500.0,0.00019352,2]
[368855453,1751377846846,-500.0,0.00019352,2]
[368855455,1751377846856,-460.0,0.00019455,2]
[368855456,1751377846865,-641.94,0.00019455,2]
[368855458,1751377846875,-908.06,0.00019455,2]
[368855460,1751377846885,-460.0,0.00019456,2]
[368855462,1751377846895,-808.9,0.00019456,2]
[368855463,1751377846904,-574.63,0.00019456,2]
[368855465,1751377846915,-1922.78,0.00019456,2]
[368855467,1751377846924,-460.0,0.00019456,2]
[368855469,1751377846934,-164.87,0.00019456,2]
[368855471,1751377846944,-460.0,0.00019456,2]
[368855473,1751377846954,-460.0,0.00019456,2]
[368855475,1751377846964,-460.0,0.00019456,2]
[368855477,1751377846974,-294.98,0.00019456,2]
[368855478,1751377846984,-460.0,0.00019457,2]
[368855480,1751377846994,-460.0,0.00019457,2]
[368855482,1751377847004,-291.6,0.00019457,2]
[368855484,1751377847014,-251.72,0.00019457,2]
[368855486,1751377847024,-460.0,0.00019457,2]
[368855488,1751377847034,-460.0,0.00019459,2]